bitfinex-derivatives/quotes_ETHF0:USTF0_20260121
["timestamp","ask_amount","ask_price","bid_price","bid_amount"]
[1768990168861,1.36965484,2965.3,2964.0,1.11381419]
[1768990169055,1.33541452,2965.2,2964.0,1.11381419]
[1768990169246,1.33547775,2965.1,2964.0,1.11381419]
[1768990169450,1.53844484,2965.3,2964.0,1.11381419]
[1768990169646,2.8741039,2965.2,2964.0,1.11381419]
[1768990169857,1.11381419,2964.9,2963.7,0.00505893]
[1768990170059,0.94289909,2964.8,2963.7,0.00505893]
[1768990170365,1.11381419,2964.9,2963.7,0.00505893]
[1768990170561,1.11381419,2964.6,2963.7,0.00505893]
[1768990170770,1.33518289,2964.5,2963.7,0.00505893]
[1768990170967,1.33513286,2964.4,2963.7,0.00505893]
[1768990171269,1.53848484,2964.5,2963.5,0.00379565]
[1768990171567,2.70414692,2964.4,2963.5,0.00379565]
[1768990171765,1.36965484,2964.4,2963.5,0.00379565]
[1768990172165,1.36965484,2964.4,2963.7,0.00505893]
[1768990172365,1.36965484,2964.4,2963.5,0.00379565]
[1768990173566,1.36965484,2964.4,2963.7,0.00505893]
[1768990173761,1.36965484,2964.4,2963.5,0.00379565]
[1768990174766,1.36965484,2964.4,2963.7,0.00505893]
[1768990175978,0.00505893,2964.3,2963.5,0.00379565]
[1768990177364,0.00505893,2964.3,2963.6,0.00505893]
[1768990181473,1.54356377,2964.3,2962.5,3.03698564]
[1768990181774,1.54356377,2964.3,2962.7,1.2956062]
[1768990181980,1.54356377,2964.3,2963.0,1.11381419]
[1768990182577,1.54356377,2964.3,2963.0,1.11631513]
[1768990184080,0.16885,2964.2,2963.0,1.11631513]
[1768990184274,0.16885,2964.2,2963.4,0.00505893]
[1768990185784,0.16886,2964.1,2963.4,0.00505893]
[1768990185980,1.55014926,2964.1,2963.0,0.00250094]
[1768990190791,1.55014926,2964.1,2963.3,0.00336402]
[1768990192692,0.16886,2964.0,2963.3,0.00336402]
[1768990192991,1.55014926,2964.0,2963.0,0.00250094]
[1768990193595,0.16887,2963.9,2963.0,0.00250094]
[1768990201204,0.16887,2963.9,2963.0,1.11631513]
[1768990201404,0.00505893,2964.3,2963.3,1.11381419]
[1768990201595,1.33591782,2964.2,2963.3,1.11381419]
[1768990201796,1.33591782,2964.1,2963.0,2.55129309]
[1768990202109,1.33591782,2964.0,2963.0,1.11631513]
[1768990202304,0.94361503,2963.9,2963.0,1.11631513]
[1768990202596,0.16886,2964.1,2963.0,1.11631513]
[1768990202804,1.33594287,2964.0,2963.0,1.11631513]
[1768990202997,0.94363274,2963.9,2963.0,1.11631513]
[1768990203198,0.16886,2964.1,2963.0,1.11631513]
[1768990203398,1.33598495,2964.0,2963.2,1.11381419]
[1768990203603,0.16886,2964.1,2963.2,1.11381419]
[1768990203803,1.33599691,2964.0,2963.2,1.11381419]
[1768990204004,0.16886,2964.1,2963.2,1.11381419]
[1768990204303,1.33599117,2964.0,2963.2,1.11381419]
[1768990204497,0.16886,2964.1,2963.2,1.11381419]
[1768990204696,1.33681258,2964.0,2963.0,0.00250094]
[1768990204899,0.00505893,2964.3,2963.4,1.49766831]
[1768990208499,2.8100881,2965.1,2963.4,1.49766831]
[1768990208702,1.33707566,2965.0,2963.8,1.49766831]
[1768990208901,1.0,2965.1,2963.8,1.49766831]
[1768990209102,1.33715826,2965.0,2963.8,1.49766831]
[1768990209305,0.01272402,2964.4,2963.8,1.49766831]
[1768990209507,1.0,2965.1,2963.8,1.49766831]
[1768990209710,0.00505893,2964.4,2963.8,1.49766831]
[1768990209911,1.0,2965.1,2963.8,1.49766831]
[1768990210112,2.74338653,2965.0,2963.5,1.876]
[1768990210309,1.40694791,2965.0,2963.5,1.876]
[1768990210813,1.40694791,2965.0,2963.5,3.37366831]
[1768990211008,0.00505893,2964.5,2963.5,1.49766831]
[1768990213811,0.00505893,2964.5,2963.7,0.00505893]
[1768990219112,0.00505893,2964.5,2963.7,1.48766526]
[1768990220212,0.1688,2965.1,2963.8,1.48260633]
[1768990221310,0.00505893,2964.7,2963.8,1.48260633]
[1768990223420,0.00239237,2965.6,2963.8,1.48260633]
[1768990223815,0.00239237,2965.6,2964.2,1.48260633]
[1768990229727,0.94277324,2965.5,2964.2,1.48260633]
[1768990229927,1.50873554,2965.6,2964.2,1.48260633]
[1768990230223,0.94277527,2965.5,2964.2,1.48260633]
[1768990230430,1.50873554,2965.6,2964.2,1.48260633]
[1768990230624,1.33436249,2965.5,2964.2,1.48260633]
[1768990230925,1.67751554,2965.6,2964.2,1.48260633]
[1768990231118,1.33434335,2965.5,2964.2,1.48260633]
[1768990231317,1.67751554,2965.6,2964.2,1.48260633]
[1768990231517,1.33474228,2965.5,2964.2,1.48260633]
[1768990231719,0.16878,2965.5,2964.2,1.48260633]
[1768990232128,0.39187602,2965.4,2964.2,1.48260633]
[1768990232427,1.67512317,2965.5,2964.0,1.876]
[1768990232627,1.33523358,2965.4,2964.0,1.876]
[1768990232924,1.67512317,2965.5,2964.0,1.876]
[1768990233124,1.33520252,2965.4,2964.0,1.876]
[1768990233324,0.16878,2965.4,2964.0,1.876]
[1768990233718,0.3920718,2965.3,2964.0,1.876]
[1768990233918,0.16878,2965.4,2964.0,1.876]
[1768990234117,0.39231926,2965.3,2964.0,1.876]
[1768990234321,0.16878,2965.4,2963.8,1.48260633]
[1768990234521,1.33586509,2965.3,2963.8,3.35860633]
[1768990234719,1.33586509,2965.2,2963.8,3.35860633]
[1768990234919,0.16878,2965.4,2963.8,3.35860633]
[1768990235219,1.50459787,2965.3,2963.8,3.35860633]
[1768990235419,1.33580787,2965.2,2963.8,3.35860633]
[1768990235620,0.94350636,2965.1,2963.8,3.35860633]
[1768990235820,0.16879,2965.3,2963.8,3.35860633]
[1768990236021,1.33619831,2965.2,2963.8,1.48260633]
[1768990236326,1.50499831,2965.1,2963.8,1.48260633]
[1768990236529,0.00505893,2964.7,2963.8,1.48260633]
[1768990241632,0.1688,2965.1,2964.0,1.48260633]
[1768990241831,1.33685282,2965.0,2964.0,1.48260633]
[1768990242032,0.94429944,2964.9,2964.0,1.48260633]
[1768990242227,0.1688,2965.1,2964.0,1.48260633]
[1768990242425,1.33688059,2965.0,2964.0,1.48260633]
[1768990242626,0.94431928,2964.9,2964.0,1.48260633]
[1768990242924,0.1688,2965.1,2964.0,1.48260633]
[1768990243122,1.33688458,2965.0,2964.0,1.48260633]
[1768990243326,0.94432209,2964.9,2964.0,1.48260633]
[1768990243527,0.1688,2965.1,2964.0,1.48260633]
[1768990243729,1.33692111,2965.0,2964.0,1.48260633]
[1768990243927,0.94434787,2964.9,2964.0,1.48260633]
[1768990244128,0.1688,2965.1,2964.0,1.48260633]
[1768990244335,1.33693214,2965.0,2964.0,1.48260633]
[1768990244532,0.94434767,2964.9,2964.0,1.48260633]
[1768990244728,0.1688,2965.1,2964.0,1.48260633]
[1768990244927,1.33695801,2965.0,2964.0,1.48260633]
[1768990245128,0.1688,2965.1,2964.0,1.48260633]
[1768990245439,1.33697131,2965.0,2964.0,1.48260633]
[1768990245640,0.1688,2965.1,2964.0,1.48260633]
[1768990245934,1.33700055,2965.0,2964.0,1.48260633]
[1768990246135,0.1688,2965.1,2964.0,1.48260633]
[1768990246436,1.46130867,2964.9,2963.7,0.00505893]
[1768990246641,1.33701985,2964.8,2963.7,0.00505893]
[1768990246930,1.33701985,2964.7,2963.7,0.00505893]
[1768990247135,1.33701985,2964.6,2963.7,0.00505893]
[1768990247330,1.46130867,2964.9,2963.7,0.00505893]
[1768990247531,0.16882,2964.7,2963.7,0.00505893]
[1768990247730,1.33651684,2964.6,2963.7,0.00505893]
[1768990248034,0.9440444,2964.5,2963.7,0.00505893]
[1768990248233,0.16882,2964.7,2963.7,0.00505893]
[1768990248430,1.3361727,2964.6,2963.7,0.00505893]
[1768990248727,0.16882,2964.7,2963.7,0.00505893]
[1768990248933,1.33617313,2964.6,2963.7,0.00505893]
[1768990249135,0.16882,2964.7,2963.7,0.00505893]
[1768990249332,1.33607904,2964.6,2963.7,0.00505893]
[1768990249525,0.16882,2964.7,2963.7,0.00505893]
[1768990249729,1.33585589,2964.6,2963.7,0.00505893]
[1768990249929,2.79713186,2964.5,2963.7,0.00505893]
[1768990250237,1.33577926,2964.4,2962.8,1.49692323]
[1768990250427,1.46130867,2964.5,2962.8,1.49692323]
[1768990250629,1.33508494,2964.4,2962.8,1.49692323]
[1768990250826,1.46130867,2964.5,2962.8,1.49692323]
[1768990251036,1.33508594,2964.4,2963.0,1.49942417]
[1768990251236,1.46130867,2964.5,2963.5,0.00505893]
[1768990251437,1.33459104,2964.4,2963.5,0.00505893]
[1768990251639,1.46130867,2964.5,2963.5,0.00505893]
[1768990251838,1.33457957,2964.4,2963.5,0.00505893]
[1768990252139,1.46130867,2964.5,2963.5,0.00505893]
[1768990252440,1.33445739,2964.4,2963.5,0.00505893]
[1768990252632,0.00505893,2964.3,2963.5,0.00505893]
[1768990258041,1.00505893,2964.3,2963.5,0.00505893]
[1768990263546,2.46531911,2964.3,2963.5,0.00505893]
[1768990267746,1.46026018,2964.2,2963.0,0.00250094]
[1768990267954,1.62911018,2964.2,2963.0,0.00250094]
[1768990268240,1.11486572,2964.1,2963.0,0.00250094]
[1768990268447,2.7439859,2964.1,2963.0,0.00250094]
[1768990268653,1.5025242,2964.0,2963.0,0.00250094]
[1768990268847,0.16886,2964.0,2963.0,0.00250094]
[1768990269038,1.62912018,2964.0,2963.2,0.00505893]
[1768990269238,1.62912018,2964.0,2963.0,0.00250094]
[1768990269741,2.5751259,2963.8,2962.7,1.876]
[1768990269953,1.46026018,2963.7,2962.3,1.11486572]
[1768990270136,1.62914018,2963.7,2962.3,1.11486572]
[1768990270550,1.62914018,2963.7,2962.7,0.00505893]
[1768990270852,1.62914018,2963.7,2962.7,0.00937732]
[1768990272748,0.16889,2963.6,2962.7,0.00937732]
[1768990272950,1.62915018,2963.5,2962.7,0.00937732]
[1768990273151,0.1689,2963.4,2962.3,1.11486572]
[1768990273453,1.62916018,2963.4,2962.0,1.11486572]
[1768990274255,1.62916018,2963.4,2962.0,1.11734462]
[1768990274455,1.62916018,2963.4,2962.4,0.00505892]
[1768990274751,1.62916018,2963.3,2962.4,0.00505892]
[1768990276345,0.16891,2963.2,2962.4,0.00505892]
[1768990276551,1.51502805,2963.2,2962.0,0.0024789]
[1768990277250,1.51502805,2962.9,2962.0,0.0024789]
[1768990277451,0.16894,2962.7,2962.0,0.0024789]
[1768990277655,0.16894,2962.7,2961.5,1.11486572]
[1768990277656,1.68396805,2962.7,2961.5,1.11486572]
[1768990277852,0.17399893,2962.6,2961.5,1.11486572]
[1768990278050,0.16896,2962.4,2961.2,1.11486572]
[1768990278757,0.16896,2962.4,2961.2,1.11731601]
[1768990279357,0.16896,2962.4,2961.8,1.11486572]
[1768990279554,0.00505893,2962.6,2962.1,1.11486572]
[1768990280658,2.68394805,2963.0,2962.1,1.11486572]
[1768990281061,2.68394805,2963.0,2962.0,1.11486572]
[1768990281262,1.16892,2963.0,2962.3,1.11486572]
[1768990281863,0.00505893,2962.9,2962.3,1.11486572]
[1768990282059,0.00505893,2962.9,2962.4,0.00505893]
[1768990283463,0.00505893,2962.9,2961.9,1.11486572]
[1768990285365,1.68901698,2962.9,2961.6,1.11486572]
[1768990285752,0.16893,2962.8,2961.6,1.11486572]
[1768990286964,1.0,2962.7,2961.6,1.11486572]
[1768990288755,1.0,2962.7,2961.9,1.11486572]
[1768990291066,1.0,2962.7,2961.6,1.11486572]
[1768990291866,1.0,2962.7,2961.6,2.65078546]
[1768990297268,1.0,2962.7,2961.8,1.11486572]
[1768990299972,1.0,2962.5,2961.8,1.11486572]
[1768990308985,0.16893,2962.8,2962.1,1.11486572]
[1768990309178,1.33540945,2962.7,2962.1,1.11486572]
[1768990309481,1.33540945,2962.6,2962.1,1.11486572]
[1768990309786,0.94331814,2962.5,2962.1,1.11486572]
[1768990309974,0.16893,2962.8,2962.1,1.11486572]
[1768990310174,1.3341087,2962.7,2962.1,1.11486572]
[1768990310380,1.3341087,2962.6,2962.1,1.11486572]
[1768990310580,0.94176167,2962.5,2962.1,1.11486572]
[1768990310782,0.16893,2962.8,2962.1,1.11486572]
[1768990310981,1.33413919,2962.7,2962.1,1.11486572]
[1768990311181,1.33413919,2962.6,2962.1,1.11486572]
[1768990311383,0.94178323,2962.5,2962.1,1.11486572]
[1768990311581,0.16893,2962.8,2962.1,1.11486572]
[1768990311784,1.33412694,2962.7,2962.1,1.11486572]
[1768990311981,1.33412694,2962.6,2962.1,1.11486572]
[1768990312181,0.16893,2962.8,2962.1,1.11486572]
[1768990312377,0.00505893,2962.9,2962.1,1.11486572]
[1768990312583,1.9789881,2963.4,2962.5,1.54422592]
[1768990313179,1.9789881,2963.4,2962.4,1.11486572]
[1768990313582,0.1689,2963.3,2962.4,1.11486572]
[1768990313879,0.00505893,2963.2,2962.4,1.11486572]
[1768990314289,0.00505893,2963.2,2962.5,0.00505893]
[1768990314677,1.28378572,2963.0,2961.8,1.11486572]
[1768990314875,2.82307834,2963.0,2961.8,1.11486572]
[1768990316292,1.53929262,2962.9,2961.6,1.11486572]
[1768990317694,0.16894,2962.7,2961.6,1.11486572]
[1768990322703,0.16894,2962.7,2961.6,2.65590059]
[1768990324506,1.3280031,2962.6,2961.6,2.65590059]
[1768990324703,1.3280031,2962.5,2961.6,2.65590059]
[1768990325001,0.16894,2962.7,2961.6,2.65590059]
[1768990325201,1.32817119,2962.6,2961.6,2.65590059]
[1768990325403,1.32817119,2962.5,2961.6,2.65590059]
[1768990325604,0.16894,2962.7,2961.6,2.65590059]
[1768990325806,1.32834277,2962.6,2961.6,2.65590059]
[1768990325998,1.32834277,2962.5,2961.6,2.65590059]
[1768990326304,0.16894,2962.7,2961.6,2.65590059]
[1768990326498,1.32836688,2962.6,2961.6,2.65590059]
[1768990326699,1.32836688,2962.5,2961.6,2.65590059]
[1768990326901,0.16894,2962.7,2961.7,1.54103487]
[1768990327100,1.3283671,2962.6,2961.7,1.54103487]
[1768990327300,1.32836992,2962.5,2961.7,1.54103487]
[1768990327500,0.16894,2962.7,2961.7,1.54103487]
[1768990327709,1.3283748,2962.6,2961.7,1.54103487]
[1768990327905,1.3283748,2962.5,2961.7,1.54103487]
[1768990328095,0.16894,2962.7,2961.7,1.54103487]
[1768990328300,1.3283713,2962.6,2961.7,1.54103487]
[1768990328500,1.3283713,2962.5,2961.7,1.54103487]
[1768990328708,0.16894,2962.7,2961.7,1.54103487]
[1768990328900,1.32836571,2962.6,2961.7,1.54103487]
[1768990329111,1.8100881,2963.1,2961.7,1.54103487]
[1768990329306,1.3285045,2963.0,2961.7,1.54103487]
[1768990329513,1.3285045,2962.9,2961.7,1.54103487]
[1768990329717,0.00505893,2963.2,2961.7,1.54103487]
[1768990330009,1.32848388,2963.1,2961.7,1.54103487]
[1768990330212,1.32848388,2963.0,2961.7,1.54103487]
[1768990330411,1.32848388,2962.9,2961.7,1.54103487]
[1768990330602,0.00505893,2963.2,2961.7,1.54103487]
[1768990330802,0.16893,2962.9,2961.7,1.54103487]
[1768990331002,1.32831699,2962.8,2961.7,1.54103487]
[1768990331218,0.16893,2962.9,2961.7,1.54103487]
[1768990331406,1.32823547,2962.8,2961.7,1.54103487]
[1768990331711,1.49712026,2962.7,2961.7,1.54103487]
[1768990331904,0.16894,2962.7,2961.7,1.54103487]
[1768990334405,1.98405703,2963.2,2961.7,1.54103487]
[1768990334606,1.32819643,2963.1,2961.7,1.54103487]
[1768990334807,1.32819643,2963.0,2961.7,1.54103487]
[1768990335001,1.32819643,2962.9,2961.7,1.54103487]
[1768990335197,0.17396893,2963.2,2961.7,1.54103487]
[1768990335403,1.32821638,2963.1,2961.7,1.54103487]
[1768990335604,1.32821638,2963.0,2961.7,1.54103487]
[1768990335803,1.32821638,2962.9,2961.7,1.54103487]
[1768990336002,0.17396893,2963.2,2961.7,1.54103487]
[1768990336208,1.32819737,2963.1,2961.7,1.54103487]
[1768990336408,1.32819737,2963.0,2961.7,1.54103487]
[1768990336710,0.17396893,2963.2,2961.7,1.54103487]
[1768990336711,1.32819737,2962.9,2961.7,1.54103487]
[1768990336910,0.17396893,2963.2,2961.7,1.54103487]
[1768990337110,1.32814308,2963.1,2961.7,1.54103487]
[1768990337311,1.32814308,2963.0,2961.7,1.54103487]
[1768990337516,1.32814308,2962.9,2961.7,1.54103487]
[1768990337706,0.17396893,2963.2,2961.7,1.54103487]
[1768990337907,1.32809896,2963.1,2961.7,1.54103487]
[1768990338113,1.32809896,2963.0,2962.1,1.51300471]
[1768990338308,0.17396893,2963.2,2962.1,1.51300471]
[1768990338509,0.38939819,2963.1,2962.1,1.51300471]
[1768990338719,0.17396893,2963.2,2962.1,1.51300471]
[1768990338902,0.38940087,2963.1,2962.1,1.51300471]
[1768990339106,0.17396893,2963.2,2962.1,1.51300471]
[1768990339314,0.00404607,2963.5,2962.1,1.51300471]
[1768990339516,1.9789581,2963.8,2962.6,1.51300471]
[1768990339715,0.16887,2963.8,2962.6,1.51300471]
[1768990340711,0.00377089,2963.8,2962.6,1.51300471]
[1768990341711,0.00505893,2963.5,2962.6,1.51300471]
[1768990341913,0.00505893,2963.5,2962.8,0.00505893]
[1768990342117,0.00377089,2963.8,2962.8,1.51806364]
[1768990343117,0.00505893,2963.6,2962.8,1.51806364]
[1768990350631,1.48394393,2963.6,2962.8,0.00505893]
[1768990350824,1.48394393,2963.6,2962.8,1e-08]
[1768990351730,1.65283393,2963.6,2962.8,1e-08]
[1768990352639,1.647785,2963.4,2962.8,1e-08]
[1768990352926,1.647785,2963.4,2962.0,1.51300471]
[1768990353333,1.647785,2963.4,2961.9,1.877]
[1768990353829,1.647785,2963.4,2962.4,0.00505893]
[1768990355530,1.647785,2963.3,2962.4,0.00505893]
[1768990360036,1.647795,2963.2,2962.4,0.00505893]
[1768990360436,1.478885,2963.0,2961.6,1.51300471]
[1768990360641,1.647805,2963.0,2961.3,1.11581822]
[1768990361845,1.647805,2963.0,2961.3,2.62882293]
[1768990364045,1.647805,2963.0,2961.4,1.51300471]
[1768990372748,0.16892,2963.0,2961.7,2.66063761]
[1768990374447,0.16892,2963.0,2961.8,1.54481939]
[1768990374647,1.58627795,2963.4,2962.1,2.66063761]
[1768990374848,1.31659934,2963.3,2962.1,2.66063761]
[1768990375149,1.31659934,2963.2,2962.1,2.66063761]
[1768990375349,1.58627795,2963.4,2962.1,2.66063761]
[1768990375540,0.16892,2963.0,2962.1,2.66063761]
[1768990376053,0.16892,2963.0,2961.7,2.66063761]
[1768990376246,0.16892,2963.0,2961.8,1.54481939]
[1768990377353,0.16892,2963.0,2962.1,0.00505893]
[1768990380750,0.16892,2963.0,2962.1,1.54987832]
[1768990381644,0.16892,2963.0,2962.1,0.00505893]
[1768990385250,0.38670195,2962.9,2962.1,0.00505893]
[1768990385450,0.16892,2963.0,2962.1,0.00505893]
[1768990385650,0.38671136,2962.9,2962.1,0.00505893]
[1768990385850,0.16892,2963.0,2962.1,0.00505893]
[1768990386054,0.38671093,2962.9,2962.1,0.00505893]
[1768990386350,0.16892,2963.0,2962.1,0.00505893]
[1768990386549,0.38672335,2962.9,2962.1,0.00505893]
[1768990386750,0.16892,2963.0,2962.1,0.00505893]
[1768990386949,0.38672439,2962.9,2962.1,0.00505893]
[1768990387151,0.16892,2963.0,2962.1,0.00505893]
[1768990387354,0.3867279,2962.9,2962.1,0.00505893]
[1768990387554,0.16892,2963.0,2962.1,0.00505893]
[1768990387853,0.38673711,2962.9,2962.1,0.00505893]
[1768990388046,0.16892,2963.0,2962.1,0.00505893]
[1768990388245,0.38673759,2962.9,2962.1,0.00505893]
[1768990388450,0.16892,2963.0,2962.1,0.00505893]
[1768990388650,0.38674351,2962.9,2962.1,0.00505893]
[1768990388850,0.16892,2963.0,2962.2,1.11544141]
[1768990389148,0.38674351,2962.9,2962.2,1.11544141]
[1768990389345,0.16892,2963.0,2962.2,1.11544141]
[1768990389546,0.38674852,2962.9,2962.2,1.11544141]
[1768990389747,0.16892,2963.0,2962.2,1.11544141]
[1768990389945,0.38674853,2962.9,2962.2,1.11544141]
[1768990390245,0.16892,2963.0,2962.2,1.11544141]
[1768990390445,0.38674804,2962.9,2962.2,1.11544141]
[1768990390654,0.16892,2963.0,2962.2,1.11544141]
[1768990390848,1.31891999,2962.9,2962.2,1.11544141]
[1768990391047,0.16892,2963.0,2962.2,1.11544141]
[1768990391242,1.31892381,2962.9,2962.2,1.11544141]
[1768990391447,0.16892,2963.0,2962.2,1.11544141]
[1768990391746,1.31893089,2962.9,2962.2,1.11544141]
[1768990391950,0.16892,2963.0,2962.2,1.11544141]
[1768990392149,1.31893002,2962.9,2962.2,1.11544141]
[1768990392349,0.16892,2963.0,2962.2,1.11544141]
[1768990392657,1.31897417,2962.9,2962.2,1.11544141]
[1768990392960,0.38675844,2962.8,2962.2,1.11544141]
[1768990393153,1.74750616,2963.0,2962.2,1.11544141]
[1768990393349,1.31900659,2962.9,2962.2,1.11544141]
[1768990393655,0.38676407,2962.8,2962.2,1.11544141]
[1768990393856,1.74750616,2963.0,2962.2,1.11544141]
[1768990394056,0.38677843,2962.9,2962.2,1.11544141]
[1768990394256,0.38677843,2962.8,2962.2,1.11544141]
[1768990394660,1.74750616,2963.0,2962.2,1.11544141]
[1768990394857,1.31907809,2962.9,2962.2,1.11544141]
[1768990395059,0.38679518,2962.8,2962.2,1.11544141]
[1768990395357,1.74750616,2963.0,2962.2,1.11544141]
[1768990395659,1.31914749,2962.9,2962.2,1.11544141]
[1768990395853,1.31914127,2962.8,2962.1,0.00505893]
[1768990396051,1.74750616,2963.0,2962.1,0.00505893]
[1768990396259,2.99133384,2962.9,2962.1,0.00505893]
[1768990396560,1.67220269,2962.7,2961.9,1.11544141]
[1768990396858,0.38680985,2962.6,2961.9,1.11544141]
[1768990397058,1.67220269,2962.7,2961.9,1.11544141]
[1768990397258,0.38682336,2962.6,2961.9,1.11544141]
[1768990397449,1.67220269,2962.7,2961.9,1.11544141]
[1768990397647,0.38682748,2962.6,2961.9,1.11544141]
[1768990397850,1.67220269,2962.7,2961.9,1.11544141]
[1768990398058,0.38682571,2962.6,2961.9,1.11544141]
[1768990398354,1.84114269,2962.7,2961.6,1.11544141]
[1768990398658,2.99130479,2962.6,2961.6,1.11544141]
[1768990398862,1.31910818,2962.5,2961.6,1.11544141]
[1768990399059,1.67220269,2962.6,2961.6,1.11544141]
[1768990399251,2.05891824,2962.5,2961.5,1.11544141]
[1768990399461,1.67220269,2962.5,2961.5,1.11544141]
[1768990399764,0.3866901,2962.4,2961.5,1.11544141]
[1768990400058,1.67220269,2962.5,2961.5,1.11544141]
[1768990404051,1.67220269,2962.5,2961.7,1.11544141]
[1768990409759,0.16894,2962.6,2961.7,1.11544141]
[1768990409961,3.01417664,2963.6,2962.0,1.11544141]
[1768990409962,3.48229079,2963.2,2962.0,1.11544141]
[1768990410162,1.31726421,2963.1,2962.0,1.11544141]
[1768990410467,1.31726421,2963.0,2962.0,1.11544141]
[1768990410664,1.31726421,2962.9,2962.0,1.11544141]
[1768990410860,1.31726421,2962.8,2962.0,1.11544141]
[1768990411061,1.31726421,2962.7,2962.0,1.11544141]
[1768990411261,0.16892,2963.0,2962.0,1.11544141]
[1768990411461,1.31735301,2962.9,2962.0,1.11544141]
[1768990411667,1.31735301,2962.8,2962.0,1.11544141]
[1768990411863,1.31735301,2962.7,2962.0,1.11544141]
[1768990412065,0.16892,2963.0,2962.0,1.11544141]
[1768990412265,1.31739204,2962.9,2962.0,1.11544141]
[1768990412455,1.31739204,2962.8,2962.0,1.11544141]
[1768990412656,1.31739204,2962.7,2962.0,1.11544141]
[1768990412858,0.16892,2963.0,2962.3,1.11544141]
[1768990413161,1.8100881,2963.5,2962.3,1.11544141]
[1768990413360,1.3176168,2963.4,2962.3,1.11544141]
[1768990413568,1.3176168,2963.3,2962.3,1.11544141]
[1768990413764,1.3176168,2963.2,2962.3,1.11544141]
[1768990414069,1.3176168,2963.1,2962.3,1.11544141]
[1768990414273,1.3176168,2963.0,2962.3,1.11544141]
[1768990414476,0.1689,2963.4,2962.3,1.11544141]
[1768990414674,1.32174942,2963.3,2962.3,1.11544141]
[1768990414871,1.32174942,2963.2,2962.3,1.11544141]
[1768990415071,0.3863637,2963.1,2962.3,1.11544141]
[1768990415371,0.1689,2963.4,2962.3,1.11544141]
[1768990415572,1.32171486,2963.3,2962.3,1.11544141]
[1768990415773,1.32171486,2963.2,2962.3,1.11544141]
[1768990415974,0.1689,2963.4,2962.3,1.11544141]
[1768990416176,1.32173451,2963.3,2962.3,1.11544141]
[1768990416376,1.32173451,2963.2,2962.3,1.11544141]
[1768990416578,0.1689,2963.4,2962.3,1.11544141]
[1768990416770,1.32166115,2963.3,2962.3,1.11544141]
[1768990416971,1.32166115,2963.2,2962.3,1.11544141]
[1768990417172,1.84110269,2963.3,2962.0,1.11544141]
[1768990417374,1.32161049,2963.2,2962.0,1.11544141]
[1768990417574,1.84110269,2963.3,2962.0,1.11544141]
[1768990417774,0.38632818,2963.2,2962.0,1.11544141]
[1768990417977,1.84110269,2963.3,2962.0,1.11544141]
[1768990418178,0.38632998,2963.2,2962.0,1.11544141]
[1768990418375,1.84110269,2963.3,2962.0,1.11544141]
[1768990418568,0.38634092,2963.2,2962.0,1.11544141]
[1768990418774,1.84110269,2963.3,2962.0,1.11544141]
[1768990418982,0.38637778,2963.2,2962.0,1.11544141]
[1768990419177,1.84110269,2963.3,2962.0,1.11544141]
[1768990419372,2.7876441,2963.1,2961.7,1.11544141]
[1768990419574,1.67220269,2962.9,2961.7,1.11544141]
[1768990426693,1.67220269,2962.9,2961.9,1.11544141]
[1768990427995,0.16892,2963.0,2961.9,1.11544141]
[1768990428195,0.38636629,2962.9,2961.9,1.11544141]
[1768990428386,0.16892,2963.0,2961.9,1.11544141]
[1768990428587,0.3863629,2962.9,2961.9,1.11544141]
[1768990428786,0.16892,2963.0,2961.9,1.11544141]
[1768990428994,0.38636272,2962.9,2961.9,1.11544141]
[1768990429197,0.16892,2963.0,2961.9,1.11544141]
[1768990429386,0.38636679,2962.9,2961.9,1.11544141]
[1768990429585,0.16892,2963.0,2962.1,1.11544141]
[1768990429788,0.38636679,2962.9,2962.1,1.11544141]
[1768990430094,0.16892,2963.0,2962.1,1.11544141]
[1768990430286,0.38638728,2962.9,2962.1,1.11544141]
[1768990430487,0.16892,2963.0,2962.1,1.11544141]
[1768990430691,0.38638573,2962.9,2962.1,1.11544141]
[1768990430891,0.16892,2963.0,2962.1,1.11544141]
[1768990431094,0.38638754,2962.9,2962.1,1.11544141]
[1768990431394,0.16892,2963.0,2962.1,1.11544141]
[1768990431585,0.38641249,2962.9,2962.1,1.11544141]
[1768990431787,0.16892,2963.0,2962.1,1.11544141]
[1768990432093,0.38641197,2962.9,2962.1,1.11544141]
[1768990432292,0.16892,2963.0,2962.1,1.11544141]
[1768990432494,0.38643767,2962.9,2962.1,1.11544141]
[1768990432697,0.16892,2963.0,2962.1,1.11544141]
[1768990432992,0.38643761,2962.9,2962.1,1.11544141]
[1768990433186,0.16892,2963.0,2962.1,1.11544141]
[1768990433387,0.38646914,2962.9,2962.1,1.11544141]
[1768990433695,0.16892,2963.0,2962.1,1.11544141]
[1768990433995,0.3864611,2962.9,2962.1,1.11544141]
[1768990434194,0.16892,2963.0,2962.1,1.11544141]
[1768990434498,0.38649509,2962.9,2962.1,1.11544141]
[1768990434693,0.16892,2963.0,2962.1,1.11544141]
[1768990434885,0.38649223,2962.9,2962.1,1.11544141]
[1768990435085,0.16892,2963.0,2962.1,1.11544141]
[1768990435286,0.38653233,2962.9,2962.1,1.11544141]
[1768990435496,0.16892,2963.0,2962.1,1.11544141]
[1768990435797,0.38653233,2962.9,2962.1,1.11544141]
[1768990435997,0.16892,2963.0,2962.1,1.11544141]
[1768990436194,0.38652576,2962.9,2962.1,1.11544141]
[1768990436395,0.16892,2963.0,2962.1,1.11544141]
[1768990436698,0.38655843,2962.9,2962.1,1.11544141]
[1768990436896,0.16892,2963.0,2962.1,1.11544141]
[1768990437094,1.3270321,2962.9,2962.1,1.11544141]
[1768990437289,0.38655843,2962.8,2962.1,1.11544141]
[1768990437485,0.16892,2963.0,2962.1,1.11544141]
[1768990437691,1.32708564,2962.9,2962.1,1.11544141]
[1768990437890,0.38661198,2962.8,2962.1,1.11544141]
[1768990438092,0.16892,2963.0,2962.1,1.11544141]
[1768990438388,1.32727654,2962.9,2962.1,1.11544141]
[1768990438589,0.38666759,2962.8,2962.1,1.11544141]
[1768990438789,0.16892,2963.0,2962.1,1.11544141]
[1768990438993,1.32727808,2962.9,2962.1,1.11544141]
[1768990439195,0.38666804,2962.8,2962.1,1.11544141]
[1768990439386,0.16892,2963.0,2962.1,1.11544141]
[1768990439590,1.32753664,2962.9,2962.5,1.11544141]
[1768990439787,1.8100881,2963.5,2962.5,1.11544141]
[1768990439991,0.3867516,2963.4,2962.5,1.11544141]
[1768990440190,1.32756324,2963.3,2962.5,1.11544141]
[1768990440394,1.32756324,2963.2,2962.5,1.11544141]
[1768990440597,1.32756324,2963.1,2962.3,1.11544141]
[1768990440794,0.3867516,2963.0,2962.3,1.11544141]
[1768990440998,0.16889,2963.5,2962.3,1.11544141]
[1768990441206,1.32736902,2963.4,2962.3,1.11544141]
[1768990441396,1.32736902,2963.3,2962.3,1.11544141]
[1768990441593,1.32736902,2963.2,2962.6,1.11544141]
[1768990441795,0.16889,2963.5,2962.6,1.11544141]